fUSD/lending_fUSD_20250629
["ID","MTS","AMOUNT","RATE_DAILY","PERIOD"]
[368599290,1751225433382,-738.095794,0.00020212,2]
[368599291,1751225433392,-738.095794,0.00020212,2]
[368599292,1751225433401,-151.0,0.00020212,2]
[368599293,1751225433411,-151.0,0.00020212,2]
[368599294,1751225433421,-151.0,0.00020212,2]
[368599295,1751225433432,-152.033014,0.00020212,2]
[368599296,1751225433441,-151.0,0.00020212,2]
[368599297,1751225433451,-151.0,0.00020212,2]
[368599298,1751225433460,-299.255704,0.00020219,2]
[368599299,1751225433470,-151.382302,0.00020219,2]
[368599300,1751225433480,-167.544142,0.00020219,2]
[368599301,1751225433489,-167.544142,0.00020219,2]
[368599302,1751225433498,-738.095794,0.00020219,2]
[368599303,1751225433512,-738.095794,0.00020219,2]
[368599304,1751225433522,-1062.735864,0.00020219,2]
[368599305,1751225433531,-1062.735864,0.00020219,2]
[368599306,1751225433540,-159.145776,0.00020219,2]
[368599307,1751225433550,-151.0,0.00020219,2]
[368599308,1751225433559,-200.9556,0.00020219,2]
[368599309,1751225433570,-650.01,0.00020242,2]
[368599310,1751225433582,-235.81157947,0.00020243,2]
[368599311,1751225433591,-102790.80303633,0.00020244,3]
[368599316,1751225438281,-336.01088602,0.00018831,3]
[368599317,1751225438330,-163.98911398,0.00018831,3]
[368599318,1751225438340,-155.2153783,0.00020243,2]
[368599319,1751225438350,-500.0,0.00020243,2]
[368599320,1751225438360,-271.09991868,0.00020243,2]
[368599321,1751225438369,-500.0,0.00020243,2]
[368599322,1751225438379,-500.0,0.00020243,2]
[368599323,1751225438388,-500.0,0.00020243,2]
[368599324,1751225438398,-500.0,0.00020243,2]
[368599325,1751225438407,-500.0,0.00020243,2]
[368599326,1751225438416,-459.10113137,0.00020243,2]
[368599327,1751225438426,-353.98506855,0.00020243,2]
[368599328,1751225438435,-500.0,0.00020243,2]
[368599329,1751225438445,-500.0,0.00020243,2]
[368599330,1751225438454,-500.0,0.00020243,2]
[368599331,1751225438464,-524.63014817,0.00020243,2]
[368599332,1751225438473,-421.3472338,0.00020243,2]
[368599333,1751225438483,-500.0,0.00020243,2]
[368599334,1751225438492,-376.77626366,0.00020243,2]
[368599335,1751225438501,-609.43632939,0.00020243,2]
[368599336,1751225438510,-277.7548617,0.00020243,2]
[368599337,1751225438519,-36056.32743771,0.00020244,3]
[368599338,1751225438542,-8520.54471103,0.00020244,3]
[368599527,1751225440447,-151.0,0.00020243,2]
[368599528,1751225440456,-964.95383935,0.00020244,3]
[368599529,1751225440466,-28884.04616065,0.00020244,3]
[368599554,1751225440815,-1352.59422969,0.00020244,3]
[368600427,1751225599389,500.0,0.00027397,120]
[368600647,1751226479737,215.11,0.00013699,2]
[368600661,1751226631473,-513.0,0.00015655,2]
[368600662,1751226631482,-399.3,0.00018427,5]
[368600663,1751226631495,-113.7,0.00018427,5]
[368600664,1751226631504,-203.5675578,0.00019205,2]
[368600665,1751226631514,-200.0,0.00019229,7]
[368600666,1751226631523,-516.0,0.00019304,2]
[368600667,1751226631739,-23533.36490494,0.00019305,2]
[368600668,1751226631751,-266.91,0.00019305,2]
[368600669,1751226631762,-99.72509506,0.00019305,2]
[368600670,1751226631771,-250.0,0.00019317,2]
[368600671,1751226631781,-225.97,0.00019319,2]
[368600672,1751226631790,-1000.0,0.00019328,2]
[368600673,1751226631800,-168.43,0.00019344,2]
[368600674,1751226631809,-1000.0,0.00019421,3]
[368600675,1751226631819,-250.0,0.00019523,2]
[368600676,1751226631828,-300.0,0.000196,2]
[368600677,1751226631837,-171.21,0.00019678,2]
[368600678,1751226631846,-2000.0,0.000197,2]
[368600679,1751226631856,-341.69,0.000197,2]
[368600680,1751226631865,-182.0,0.00019809,2]
[368600681,1751226631875,-169.33,0.00019836,2]
[368600682,1751226631885,-6585.03662,0.0002004,2]
[368600683,1751226631894,-456.25,0.000201,2]
[368600684,1751226631903,-1069.15171671,0.00020145,2]
[368600685,1751226631913,-215.11,0.00020187,2]
[368600686,1751226631922,-151.0,0.00020212,2]
[368600687,1751226631931,-151.0,0.00020212,2]
[368600688,1751226631941,-301.1,0.00020213,2]
[368600689,1751226631950,-151.0,0.00020219,2]
[368600690,1751226631960,-151.0,0.00020233,2]
[368600691,1751226631969,-151.0,0.00020233,2]
[368600692,1751226631979,-151.0,0.00020233,2]
[368600693,1751226631988,-151.0,0.00020233,2]
[368600694,1751226631998,-151.0,0.00020233,2]
[368600695,1751226632008,-151.0,0.00020233,2]
[368600696,1751226632017,-151.0,0.00020233,2]
[368600697,1751226632027,-151.0,0.00020233,2]
[368600698,1751226632037,-151.0,0.00020233,2]
[368600699,1751226632046,-151.0,0.00020233,2]
[368600700,1751226632056,-151.0,0.00020233,2]
[368600701,1751226632065,-151.0,0.00020233,2]
[368600702,1751226632074,-151.0,0.00020233,2]
[368600703,1751226632083,-151.0,0.00020233,2]
[368600704,1751226632092,-151.0,0.00020233,2]
[368600705,1751226632102,-151.0,0.00020233,2]
[368600706,1751226632111,-151.0,0.00020233,2]
[368600707,1751226632121,-151.0,0.00020233,2]
[368600708,1751226632131,-151.0,0.00020233,2]
[368600709,1751226632140,-193.5624891,0.00020233,2]
[368600710,1751226632149,-2488.9363659,0.00020236,2]
[368600711,1751226632159,-1994.39771323,0.00020236,2]
[368600712,1751226632185,-342.62854807,0.00020236,2]
[368600713,1751226632195,-908.33869898,0.00020236,2]
[368600714,1751226632328,-1218.36983444,0.00020236,2]
[368600715,1751226632353,-598.5675578,0.00020236,2]
[368600716,1751226632365,-1051.63510474,0.00020236,2]
[368600717,1751226632377,-1655.71484754,0.00020236,2]
[368600718,1751226632387,-1945.73786985,0.00020236,2]
[368600740,1751226637502,-9259.87713105,0.00020236,2]
[368600741,1751226637512,-159.4307566,0.00020243,2]
[368600742,1751226637521,-35824.97045053,0.00020245,2]
[368601256,1751226642606,-9602.57857269,0.00020245,2]
[368601559,1751226645589,-291.23193475,0.00020245,2]
[368601755,1751226795259,201.11448382,0.00027397,120]
[368601788,1751227626184,216.55,0.00013699,2]
[368601795,1751227831702,-510.0,0.00017198,2]
[368601796,1751227831711,-300.0,0.00019168,2]
[368601797,1751227831720,-300.0,0.00019168,2]
[368601798,1751227831729,-1200.0,0.00019168,2]
[368601799,1751227831741,-23900.0,0.00019169,2]
[368601800,1751227831750,-200.0,0.00019214,7]
[368601801,1751227831760,-167.8,0.00019265,2]
[368601802,1751227831769,-200.96,0.00019265,2]
[368601803,1751227831778,-509.18,0.00019273,2]
[368601804,1751227831786,-1440.955,0.0001928,2]
[368601805,1751227831795,-250.0,0.0001928,2]
[368601806,1751227831805,-160.68806585,0.0001928,2]
[368601807,1751227831814,-12562.69234524,0.0001937,2]
[368601808,1751227831824,-19571.04,0.0001938,2]
[368601809,1751227831833,-1000.0,0.00019462,2]
[368601810,1751227831842,-151.0,0.0001952,2]
[368601811,1751227831851,-500.0,0.0001956,2]
[368601812,1751227831859,-2000.0,0.000197,2]
[368601813,1751227831868,-300.82,0.00019778,2]
[368601814,1751227831877,-711.2,0.00019778,2]
[368601815,1751227831886,-300.0,0.000198,7]
[368601816,1751227831895,-679.925993,0.0001984,2]
[368601817,1751227831904,-700.0,0.000199,7]
[368601818,1751227831913,-6912.642,0.00019994,2]
[368601819,1751227831923,-207.4,0.00019994,2]
[368601820,1751227831933,-1303.0,0.0002,2]
[368601821,1751227831942,-5487.53052,0.0002004,2]
[368601822,1751227831952,-510.0,0.00020052,5]
[368601823,1751227831961,-3713.20049628,0.00020135,2]
[368601824,1751227831970,-161.72152687,0.00020135,2]
[368601825,1751227831979,-184.95627099,0.00020136,2]
[368601826,1751227831988,-170.17984611,0.00020136,2]
[368601827,1751227831997,-2460.30266371,0.00020136,2]
[368601828,1751227832006,-3713.20049626,0.0002014,2]
[368601829,1751227832016,-3713.20049626,0.00020145,2]
[368601830,1751227832025,-216.55,0.00020187,2]
[368601831,1751227832035,-150.0,0.000202,2]
[368601832,1751227832045,-22373.64206379,0.00020224,3]
[368601833,1751227832055,-300.0,0.00020224,2]
[368601834,1751227832064,-1000.0,0.00020224,2]
[368601835,1751227832073,-1000.0,0.00020224,2]
[368601836,1751227832083,-1000.0,0.00020224,2]
[368601837,1751227832092,-1000.0,0.00020224,2]
[368601838,1751227832101,-1000.0,0.00020224,2]
[368601839,1751227832111,-709.72161,0.00020224,2]
[368601842,1751227832142,-290.27839,0.00020224,2]
[368601844,1751227832151,-1000.0,0.00020224,2]
[368601846,1751227832160,-1116.59789912,0.00020224,2]
[368601848,1751227832169,-500.0,0.00020224,2]
[368601850,1751227832178,-160.0,0.00020224,2]
[368601852,1751227832188,-500.0,0.00020224,2]
[368601854,1751227832197,-500.0,0.00020224,2]
[368601856,1751227832206,-500.0,0.00020224,2]
[368601858,1751227832215,-500.0,0.00020224,2]
[368601860,1751227832224,-500.0,0.00020224,2]
[368601862,1751227832233,-500.0,0.00020224,2]
[368601864,1751227832243,-500.0,0.00020224,2]
[368601866,1751227832251,-500.0,0.00020224,2]
[368601868,1751227832261,-500.0,0.00020224,2]
[368601870,1751227832270,-500.0,0.00020224,2]
[368601872,1751227832279,-500.0,0.00020224,2]
[368601874,1751227832288,-500.0,0.00020224,2]
[368601876,1751227832297,-500.0,0.00020224,2]
[368601878,1751227832307,-500.0,0.00020224,2]
[368601880,1751227832316,-500.0,0.00020224,2]
[368601883,1751227832325,-500.0,0.00020224,2]
[368601885,1751227832334,-500.0,0.00020224,2]
[368601887,1751227832343,-500.0,0.00020224,2]
[368601889,1751227832352,-500.0,0.00020224,2]
[368601891,1751227832361,-500.0,0.00020224,2]
[368601893,1751227832370,-500.0,0.00020224,2]
[368601895,1751227832379,-300.0,0.00020224,2]
[368601897,1751227832389,-300.0,0.00020224,2]
[368601899,1751227832398,-300.0,0.00020224,2]
[368601901,1751227832408,-300.0,0.00020224,2]
[368601903,1751227832417,-300.0,0.00020224,2]
[368601905,1751227832426,-300.0,0.00020224,2]
[368601907,1751227832435,-300.0,0.00020224,2]
[368601909,1751227832446,-300.0,0.00020224,2]
[368601911,1751227832455,-444.09,0.00020225,2]
[368601913,1751227832464,-444.09,0.00020225,2]
[368601915,1751227832474,-444.09,0.00020225,2]
[368601917,1751227832483,-444.09,0.00020225,2]
[368601919,1751227832493,-444.09,0.00020225,2]
[368601921,1751227832502,-162.51,0.00020225,2]
[368601923,1751227832511,-1496.73893733,0.00020226,2]
[368601925,1751227832521,-302.18743136,0.00020235,2]
[368601927,1751227832532,-151.0,0.00020235,2]
[368601929,1751227832542,-151.0,0.00020235,2]
[368601931,1751227832551,-151.0,0.00020235,2]
[368601933,1751227832561,-151.0,0.00020235,2]
[368601935,1751227832570,-259.616686,0.00020235,2]
[368601937,1751227832581,-151.0,0.00020235,2]
[368601939,1751227832590,-151.0,0.00020235,2]
[368601941,1751227832600,-151.0,0.00020235,2]
[368601943,1751227832610,-151.0,0.00020235,2]
[368601945,1751227832620,-151.0,0.00020235,2]
[368601947,1751227832630,-151.0,0.00020235,2]
[368601949,1751227832639,-2661.923009,0.00020235,2]
[368601951,1751227832648,-2661.923009,0.00020235,2]
[368601953,1751227832658,-2661.923009,0.00020235,2]
[368601955,1751227832667,-2661.923009,0.00020235,2]
[368601957,1751227832677,-2661.923009,0.00020235,2]
[368601959,1751227832687,-2661.923009,0.00020235,2]
[368601961,1751227832698,-157.478118,0.00020235,2]
[368601964,1751227832707,-500.0,0.00020235,2]
[368601966,1751227832716,-150.0,0.00020235,2]
[368601968,1751227832725,-157.478118,0.00020235,2]
[368601969,1751227832734,-151.0,0.00020235,2]
[368601972,1751227832744,-152.958111,0.00020235,2]
[368601974,1751227832753,-151.0,0.00020235,2]
[368601975,1751227832762,-151.0,0.00020235,2]
[368601977,1751227832772,-151.571315,0.00020235,2]
[368601979,1751227832781,-154.480879,0.00020235,2]
[368601981,1751227832791,-151.0,0.00020235,2]
[368601983,1751227832800,-151.0,0.00020235,2]
[368601985,1751227832810,-258.691696,0.00020235,2]
[368601987,1751227832819,-151.0,0.00020235,2]
[368601989,1751227832829,-151.0,0.00020235,2]
[368601991,1751227832838,-151.0,0.00020235,2]
[368601993,1751227832847,-151.0,0.00020235,2]
[368601995,1751227832856,-500.0,0.00020235,2]
[368601997,1751227832867,-500.0,0.00020235,2]
[368601999,1751227832876,-173.128946,0.00020235,2]
[368602001,1751227832885,-3062.0,0.00020235,2]
[368602003,1751227832894,-173.128946,0.00020235,2]
[368602005,1751227832903,-1576.82365044,0.00020235,2]
[368602007,1751227832912,-304.28,0.00020236,2]
[368602009,1751227832922,-151.0,0.00020236,2]
[368602011,1751227832931,-152.127401,0.00020236,2]
[368602013,1751227832940,-151.0,0.00020236,2]
[368602015,1751227832949,-151.0,0.00020236,2]
[368602017,1751227832959,-151.0,0.00020236,2]
[368602019,1751227832967,-152.169171,0.00020236,2]
[368602021,1751227832977,-151.0,0.00020236,2]
[368602023,1751227832986,-154.81563,0.00020236,2]
[368602025,1751227832995,-151.0,0.00020236,2]
[368602026,1751227833005,-151.0,0.00020236,2]
[368602027,1751227833014,-151.0,0.00020236,2]
[368602029,1751227833024,-151.0,0.00020236,2]
[368602031,1751227833034,-151.0,0.00020236,2]
[368602033,1751227833043,-151.0,0.00020236,2]
[368602035,1751227833053,-151.0,0.00020236,2]
[368602037,1751227833062,-151.0,0.00020236,2]
[368602038,1751227833072,-151.0,0.00020236,2]
[368602040,1751227833082,-151.0,0.00020236,2]
[368602042,1751227833091,-1222.146244,0.00020236,2]
[368602044,1751227833101,-1222.146244,0.00020236,2]
[368602046,1751227833110,-1222.146244,0.00020236,2]
[368602048,1751227833119,-1222.146244,0.00020236,2]
[368602050,1751227833129,-1222.146244,0.00020236,2]
[368602052,1751227833138,-1222.146244,0.00020236,2]
[368602054,1751227833147,-151.0,0.00020236,2]
[368602056,1751227833157,-151.0,0.00020236,2]
[368602058,1751227833166,-151.0,0.00020236,2]
[368602060,1751227833175,-151.0,0.00020236,2]
[368602062,1751227833184,-291.895145,0.00020236,2]
[368602063,1751227833194,-151.0,0.00020236,2]
[368602065,1751227833203,-151.0,0.00020236,2]
[368602067,1751227833212,-152.750716,0.00020236,2]
[368602069,1751227833222,-151.0,0.00020236,2]
[368602071,1751227833231,-151.0,0.00020236,2]
[368602073,1751227833241,-151.0,0.00020236,2]
[368602075,1751227833251,-151.0,0.00020236,2]
[368602077,1751227833260,-151.0,0.00020236,2]
[368602079,1751227833269,-151.0,0.00020236,2]
[368602080,1751227833278,-151.0,0.00020236,2]
[368602082,1751227833288,-151.0,0.00020236,2]
[368602084,1751227833297,-151.0,0.00020236,2]
[368602086,1751227833306,-151.0,0.00020236,2]
[368602088,1751227833315,-151.0,0.00020236,2]
[368602090,1751227833324,-151.0,0.00020236,2]
[368602092,1751227833333,-151.0,0.00020236,2]
[368602094,1751227833342,-151.0,0.00020236,2]
[368602096,1751227833351,-152.138783,0.00020236,2]
[368602098,1751227833360,-272.629999,0.00020236,2]
[368602100,1751227833370,-272.629999,0.00020236,2]
[368602102,1751227833380,-272.629999,0.00020236,2]
[368602104,1751227833389,-151.0,0.00020236,2]
[368602106,1751227833399,-151.0,0.00020236,2]
[368602108,1751227833408,-151.0,0.00020236,2]
[368602110,1751227833417,-75.18128393,0.00020236,2]
[368602112,1751227833431,-197.44871507,0.00020236,2]
[368602114,1751227833440,-272.629999,0.00020236,2]
[368602116,1751227833450,-272.629999,0.00020236,2]
[368602118,1751227833459,-151.0,0.00020236,2]
[368602120,1751227833468,-151.0,0.00020236,2]
[368602122,1751227833477,-151.0,0.00020236,2]
[368602124,1751227833486,-151.0,0.00020236,2]
[368602126,1751227833496,-151.0,0.00020236,2]
[368602127,1751227833505,-151.0,0.00020236,2]
[368602129,1751227833515,-151.0,0.00020236,2]
[368602131,1751227833527,-210.303085,0.00020236,2]
[368602133,1751227833541,-151.0,0.00020236,2]
[368602135,1751227833551,-151.0,0.00020236,2]
[368602137,1751227833561,-153.307269,0.00020236,2]
[368602139,1751227833571,-2145.3155319,0.00020236,2]
[368602141,1751227833581,-151.0,0.00020236,2]
[368602143,1751227833590,-151.0,0.00020236,2]
[368602145,1751227833600,-279.994169,0.00020236,2]
[368602147,1751227833609,-151.0,0.00020236,2]
[368602149,1751227833618,-151.0,0.00020236,2]
[368602151,1751227833627,-151.0,0.00020236,2]
[368602153,1751227833636,-164.959274,0.00020236,2]
[368602155,1751227833646,-164.959274,0.00020236,2]
[368602157,1751227833655,-164.959274,0.00020236,2]
[368602159,1751227833664,-164.959274,0.00020236,2]
[368602161,1751227833673,-164.959274,0.00020236,2]
[368602163,1751227833682,-164.959274,0.00020236,2]
[368602165,1751227833691,-151.0,0.00020236,2]
[368602167,1751227833700,-151.0,0.00020236,2]
[368602169,1751227833710,-151.0,0.00020236,2]
[368602170,1751227833719,-20263.4817515,0.00020236,2]
[368602173,1751227833730,-1009.6126762,0.00020236,2]
[368602174,1751227833739,-152.991178,0.00020236,2]
[368602176,1751227833749,-500.0,0.00020236,2]
[368602178,1751227833758,-500.0,0.00020236,2]
[368602180,1751227833769,-494.0,0.00020236,2]
[368602182,1751227833778,-1991.0,0.00020236,2]
[368602184,1751227833788,-8826.20217232,0.00020236,2]
[368602225,1751227837756,-1871.40335163,0.00020224,3]
[368602226,1751227837863,-413.4314058,0.00020224,3]
[368602960,1751227845757,-150.0,0.00019167,2]
[368602961,1751227845766,-286.405016,0.000192,2]
[368604197,1751228355015,290.0,0.00027397,120]
[368604201,1751228659732,217.92,0.00013699,2]
[368604202,1751228707508,34426.71784495,0.00014,2]
[368604203,1751228707535,40000.0,0.00014,2]
[368604204,1751228707562,5573.28215505,0.00014,2]
[368604206,1751228879603,34426.71784495,0.00014,2]
[368604207,1751228879627,25573.28215505,0.00014,2]
[368604224,1751229031915,-2500.0,0.00017055,2]
[368604226,1751229031927,-310.36332893,0.00017075,2]
[368604227,1751229031937,-2500.0,0.00017104,2]
[368604228,1751229031947,-2500.0,0.00017159,2]
[368604229,1751229031956,-1200.0,0.00017594,2]
[368604230,1751229031966,-600.0,0.00017595,2]
[368604231,1751229031975,-166.02550187,0.00017597,2]
[368604232,1751229031985,-310.36332893,0.00017947,2]
[368604233,1751229031994,-300.0,0.00018051,2]
[368604234,1751229032005,-300.0,0.00018051,2]
[368604235,1751229032015,-517.0,0.00018052,2]
[368604236,1751229032024,-622.0,0.00018052,2]
[368604237,1751229032033,-610.0,0.00018368,2]
[368604238,1751229032044,-2456.9,0.00018368,2]
[368604239,1751229032054,-521.22,0.00018387,2]
[368604240,1751229032063,-200.0,0.00018406,2]
[368604241,1751229032072,-250.18,0.00018451,2]
[368604242,1751229032081,-167.17,0.00018451,2]
[368604243,1751229032092,-4636.97,0.00018458,2]
[368604244,1751229032103,-200.0,0.0001846,7]
[368604245,1751229032114,-23900.0,0.00018469,2]
[368604246,1751229032125,-8475.77834456,0.00018728,2]
[368604247,1751229032135,-1000.0,0.00018736,2]
[368604248,1751229032144,-2500.0,0.00018737,2]
[368604249,1751229032153,-2500.0,0.00018737,2]
[368604250,1751229032163,-300.0,0.0001876,2]
[368604251,1751229032173,-250.0,0.0001876,2]
[368604252,1751229032183,-246.85,0.00018774,2]
[368604253,1751229032192,-246.85,0.00018779,2]
[368604254,1751229032201,-246.85,0.00018784,2]
[368604255,1751229032210,-200.0,0.00018784,2]
[368604256,1751229032219,-246.85,0.00018789,2]
[368604257,1751229032230,-246.85,0.00018794,2]
[368604258,1751229032239,-246.85,0.00018798,2]
[368604259,1751229032248,-246.85,0.00018803,2]
[368604260,1751229032257,-246.85,0.00018808,2]
[368604261,1751229032266,-246.85,0.00018813,2]
[368604262,1751229032277,-859.37562898,0.00018815,2]
[368604263,1751229032287,-246.85,0.00018818,2]
[368604265,1751229032297,-310.36332893,0.00018819,2]
[368604267,1751229032307,-246.85,0.00018823,2]
[368604269,1751229032317,-246.85,0.00018828,2]
[368604271,1751229032326,-246.85,0.00018833,2]
[368604273,1751229032336,-246.85,0.00018838,2]
[368604275,1751229032345,-246.85,0.00018843,2]
[368604277,1751229032354,-246.85,0.00018848,2]
[368604278,1751229032363,-246.85,0.00018853,2]
[368604279,1751229032372,-246.85,0.00018858,2]
[368604280,1751229032381,-246.85,0.00018863,2]
[368604281,1751229032391,-246.85,0.00018867,2]
[368604282,1751229032400,-1000.0,0.00018926,2]
[368604283,1751229032409,-659.79,0.00018999,2]
[368604284,1751229032418,-28736.53,0.00019,2]
[368604285,1751229032427,-166.66,0.00019013,2]
[368604286,1751229032436,-859.37562898,0.00019124,2]
[368604287,1751229032446,-250.0,0.00019125,2]
[368604288,1751229032455,-150.0,0.00019167,2]
[368604289,1751229032464,-192.12497409,0.000192,2]
[368604290,1751229032474,-859.37562898,0.00019223,2]
[368604291,1751229032483,-150.0,0.0001928,2]
[368604292,1751229032492,-729.0,0.000193,2]
[368604293,1751229032501,-150.0,0.00019307,2]
[368604294,1751229032511,-150.0,0.00019335,2]
[368604295,1751229032521,-529.019365,0.0001949,2]
[368604296,1751229032530,-859.37562898,0.00019622,2]
[368604297,1751229032540,-150.0,0.00019632,2]
[368604298,1751229032549,-150.0,0.00019725,2]
[368604299,1751229032559,-1962.74383431,0.0001974,2]
[368604300,1751229032568,-150.0,0.00019741,2]
[368604301,1751229032577,-150.0,0.00019766,2]
[368604302,1751229032587,-1000.0,0.00019776,2]
[368604303,1751229032596,-150.0,0.0001978,2]
[368604304,1751229032605,-300.0,0.000198,7]
[368604305,1751229032614,-32428.85257645,0.000198,2]
[368604306,1751229032651,-17573.24307182,0.000198,2]
[368604307,1751229032661,-594.935244,0.0001984,2]
[368604308,1751229032671,-150.0,0.00019856,2]
[368604309,1751229032680,-150.0,0.00019884,2]
[368604310,1751229032690,-150.0,0.00019887,2]
[368604311,1751229032700,-600.0,0.000199,7]
[368604312,1751229032710,-150.0,0.00019919,2]
[368604313,1751229032719,-1000.0,0.00019925,2]
[368604314,1751229032729,-150.0,0.00019938,2]
[368604315,1751229032739,-859.37562899,0.00019954,2]
[368604316,1751229032748,-207.4,0.00019994,2]
[368604317,1751229032758,-2000.0,0.0002,2]
[368604318,1751229032768,-1000.0,0.0002,8]
[368604319,1751229032778,-1000.0,0.0002,7]
[368604320,1751229032787,-1000.0,0.0002,6]
[368604321,1751229032797,-1000.0,0.0002,5]
[368604322,1751229032806,-1000.0,0.0002,4]
[368604323,1751229032815,-1000.0,0.0002,3]
[368604324,1751229032825,-1000.0,0.0002,3]
[368604325,1751229032834,-1000.0,0.0002,3]
[368604326,1751229032844,-1000.0,0.0002,3]
[368604327,1751229032853,-1000.0,0.0002,3]
[368604328,1751229032863,-1000.0,0.0002,3]
[368604329,1751229032872,-1000.0,0.0002,4]
[368604330,1751229032882,-1000.0,0.0002,4]
[368604331,1751229032892,-1000.0,0.0002,4]
[368604332,1751229032901,-469.0,0.0002,5]
[368604333,1751229032910,-1000.0,0.0002,3]
[368604334,1751229032925,-1000.0,0.0002,3]
[368604335,1751229032934,-1000.0,0.0002,3]
[368604336,1751229032944,-35.89918537,0.0002,4]
[368604337,1751229032956,-429.88456526,0.0002,4]
[368604338,1751229032979,-500.0,0.0002,4]
[368604339,1751229033000,-34.21624937,0.0002,4]
[368604340,1751229033010,-565.78375063,0.0002,4]
[368604341,1751229033022,-434.21624937,0.0002,4]
[368604342,1751229033031,-219.24824238,0.0002,3]
[368604534,1751229040124,-780.75175762,0.0002,3]
[368604536,1751229040133,-541.0,0.0002,3]
[368604538,1751229040142,-1000.0,0.0002,3]
[368604540,1751229040151,-1007.0,0.0002,3]
[368604542,1751229040160,-1000.0,0.0002,3]
[368604544,1751229040170,-151.0,0.00020001,2]
[368604546,1751229040179,-1962.74383426,0.00020001,2]
[368604548,1751229040188,-151.0,0.0002003,2]
[368604550,1751229040197,-152.965052,0.0002003,2]
[368604552,1751229040206,-151.0,0.0002003,2]
[368604554,1751229040215,-1055.18182521,0.0002003,2]
[368604556,1751229040227,-297.64970003,0.0002003,2]
[368604811,1751229043150,-3220.11057476,0.0002003,2]
[368604812,1751229043160,-1089.51000687,0.0002004,2]
[368605093,1751229445785,-800.0,0.000198,7]
[368605094,1751229445808,-1600.0,0.000199,7]
[368605095,1751229445880,-1000.0,0.000209,7]
[368605096,1751229445905,-1000.0,0.000209,7]
[368605099,1751229712889,214.7,0.00013699,2]
[368605104,1751230232058,-300.0,0.00017958,2]
[368605105,1751230232068,-300.0,0.00017958,2]
[368605106,1751230232078,-1000.0,0.00017959,2]
[368605107,1751230232087,-103592.00908333,0.00017959,5]
[368605108,1751230232097,-2500.0,0.00017959,2]
[368605109,1751230232107,-509.0,0.00018048,2]
[368605110,1751230232116,-2500.0,0.00018104,2]
[368605111,1751230232126,-194.77,0.00018246,2]
[368605112,1751230232136,-200.0,0.0001826,2]
[368605113,1751230232146,-427.06081935,0.00018296,2]
[368605114,1751230232156,-1000.0,0.00018368,2]
[368605115,1751230232165,-197.1,0.00018411,2]
[368605116,1751230232174,-17071.62646137,0.00018464,2]
[368605117,1751230232183,-300.0,0.00018516,2]
[368605118,1751230232193,-1852.42,0.00018517,2]
[368605119,1751230232207,-200.0,0.00018517,2]
[368605120,1751230232218,-2959.45491289,0.00018728,2]
[368605121,1751230232229,-200.0,0.00018803,7]
[368605122,1751230232239,-169.0,0.00018841,2]
[368605123,1751230232249,-2899.93,0.00018854,2]
[368605124,1751230232259,-169.0,0.00018888,2]
[368605125,1751230232269,-402.3340355,0.00018893,2]
[368605126,1751230232279,-23900.0,0.00018894,2]